Cogmind - Beta 17 @@@ ROGUE MODE // 2026.07.17 @ 00:30:20 Player: TheSkyeDoctor Result: Destroyed by X-57 Shotgunner with High-powered Shotgun Performance ------------- Evolutions (2) 1000 Regions Visited (7) 1400 Robots Destroyed (33) 165 Value Destroyed (825) 825 Prototype IDs (25) 500 Alien Tech Used (0) 0 Bonus (300) 300 TOTAL SCORE: 4190 Bonus ------- Aligned with FarCom 300 Cogmind --------- Core Integrity 0/550 Matter 18/300 Energy 100/100 System Corruption 3% Temperature Cool (9) Movement Core (400) Ox7 Location -8/Materials Parts ------- > --- POWER (1) -------- (None) > --- PROPULSION (2) --- (None) > --- UTILITY (4) ------ Large Storage Unit Hacking Suite > --- WEAPON (4) ------- Flail > --- INVENTORY (15) --- Light Deuterium Engine VTOL Module Scrap Suit Large Battery (200) High-capacity Matter Pod (200) Improved Terrain Scanner Improved Terrain Scan Processor Cloak of Protection Hacking Suite System Shield Peak State ------------ > --- POWER ------------ Deuterium Engine > --- PROPULSION ------- Wheel > --- UTILITY ---------- Large Storage Unit Structural Scanner Seismic Detector Hacking Suite > --- WEAPON ----------- Minigun Improved Light Cannon Improved Light Cannon Assault Cannon > --- INVENTORY -------- Light Deuterium Engine VTOL Module Scrap Suit Large Battery High-capacity Matter Pod Improved Terrain Scanner Improved Terrain Scan Processor Cloak of Protection Hacking Suite Heavy Assault Rifle Flak Cannon Mining Laser Flail [Rating: 24] Favorites ----------- Power Ion Engine Engine Ion Engine Propulsion Light Treads Treads Light Treads Leg Aluminum Leg Wheel Wheel Flight Unit VTOL Module Utility Seismic Detector Device Seismic Detector Storage Large Storage Unit Hackware Hacking Suite Weapon Improved Light Cannon Energy Gun Medium Laser Ballistic Gun Heavy Assault Rifle Ballistic Cannon Improved Light Cannon Launcher Rocket Launcher Special Weapon Mining Laser Impact Weapon Flail Build | -11 -10 -10 -9 -9 -9 -8 -8 ------- Run | Yrd Mat Min Mat Min Exi Min Mat Slots Evolved 4 | . . . 2 . . . 2 Power . | . . . . . . . . Propulsion . | . . . . . . . . Utility 2 | . . . . . . . 2 Weapon 2 | . . . 2 . . . . Parts Attached 28 | 8 . . 6 3 . 2 9 Power 3 | 2 . . . . . . 1 Engine 3 | 2 . . . . . . 1 Core . | . . . . . . . . Reactor . | . . . . . . . . Propulsion 8 | 2 . . 1 2 . . 3 Treads 3 | 2 . . 1 . . . . Leg 2 | . . . . . . . 2 Wheel 2 | . . . . 2 . . . Hover . | . . . . . . . . Flight 1 | . . . . . . . 1 Utility 5 | 2 . . 1 . . . 2 Device 2 | 1 . . . . . . 1 Storage 2 | 1 . . 1 . . . . Processor . | . . . . . . . . Hackware 1 | . . . . . . . 1 Protection . | . . . . . . . . Artifact . | . . . . . . . . Weapon 12 | 2 . . 4 1 . 2 3 Energy Gun 2 | 1 . . 1 . . . . Energy Cannon . | . . . . . . . . Ballistic Gun 3 | 1 . . 1 . . 1 . Ballistic Cannon 4 | . . . 2 . . 1 1 Launcher 1 | . . . . 1 . . . Special Weapon 1 | . . . . . . . 1 Impact Weapon 1 | . . . . . . . 1 Slashing Weapon . | . . . . . . . . Piercing Weapon . | . . . . . . . . Special Melee Weapon . | . . . . . . . . Unidentified Prototypes 1 | . . . 1 . . . . Corrupted Parts 1 | . . . . . . . 1 System Corruption 3 | . . . . . . . 3 Parts Lost 21 | . . . 2 5 . . 14 Power 3 | . . . 1 1 . . 1 Propulsion 7 | . . . 1 3 . . 3 Utility 2 | . . . . . . . 2 Weapon 9 | . . . . 1 . . 8 Highest Loss Streak 11 | . . . 1 5 . . 11 To Critical Strikes . | . . . . . . . . Average Backups 7 | 2 3 5 6 8 7 11 11 Power . | . 1 1 . . . . . Propulsion . | . 1 1 1 . . . . Utility 4 | . 1 2 3 4 5 7 7 Weapon 1 | . . 1 1 2 2 3 3 Tool/Special . | . . . . . . . . Unused Backups 9 | . . . . . . . 9 Power 1 | . . . . . . . 1 Propulsion . | . . . . . . . . Utility 8 | . . . . . . . 8 Weapon . | . . . . . . . . Tool/Special . | . . . . . . . . Average Slot Usage (%) 90 | . 100 100 92 91 77 77 84 Engine 8 | . 14 14 11 8 . . 6 Treads 14 | . 28 28 21 15 . . . Wheel 3 | . . . . . 11 11 6 Device 13 | . 14 14 11 11 11 11 16 Storage 11 | . 14 14 11 11 11 11 9 Hackware 1 | . . . . . . . 8 Energy Gun 9 | . 14 14 11 11 11 11 . Ballistic Gun 11 | . 14 14 11 11 11 11 10 Ballistic Cannon 14 | . . . 14 21 22 22 23 Peak Build Rating 24 | 7 7 8 13 14 12 15 24 Average Rating 12 | 5 7 7 11 12 11 14 21 On Entrance 9 | . 7 7 8 13 11 12 15 Avg Prop Armor Cover (%) . | . . . . . . . . Naked Turns . | . . . . . . . . Heaviest Build 47 | 14 14 14 39 37 34 35 47 Greatest Support 40 | 40 40 40 40 40 10 10 13 Greatest Overweight (x) 15 | . . . 1 11 3 3 15 Average Overweight (x) 1 | . . . . . 3 3 3 Largest Inventory Capacity 15 | 8 8 8 15 15 15 15 15 Average Capacity 12 | 7 8 8 14 15 15 15 15 Most Carried 15 | 3 5 7 8 10 9 13 15 Average Carried 8 | 2 3 6 7 9 8 12 12 Final Capacity 15 | 8 8 8 15 15 15 15 15 Final Carried 13 | 3 5 7 8 8 9 13 11 Class Distribution -------------------- 39% | Mutant 37% | Gunner 17% | Skirmisher 5% | Scientist-Skirmisher Dominant Class ---------------- Mutant | -10/Materials Mutant | -10/Mines Gunner | -9/Materials Gunner | -9/Mines Gunner | -9/Exiles Skirmisher | -8/Mines Skirmisher | -8/Materials Resources | -11 -10 -10 -9 -9 -9 -8 -8 ----------- Run | Yrd Mat Min Mat Min Exi Min Mat Matter Collected 803 | 291 . 15 197 198 . 20 82 Remotely . | . . . . . . . . Salvage Created 825 | 153 . 153 208 147 . . 164 Parts 60 | 12 . 5 15 19 . . 9 Haulers Intercepted . | . . . . . . . . Recyclers Shooed . | . . . . . . . . Parts Field Recycled . | . . . . . . . . Retrieved Matter . | . . . . . . . . Parts Self-Destructed . | . . . . . . . . Prevented . | . . . . . . . . Parts Restored . | . . . . . . . . Kills | -11 -10 -10 -9 -9 -9 -8 -8 ------- Run | Yrd Mat Min Mat Min Exi Min Mat Combat Hostiles Destroyed 25 | . . 3 7 7 . . 8 Guns 16 | . . 3 4 5 . . 4 Cannons 8 | . . . 3 2 . . 3 AOE 1 | . . . . . . . 1 Classes Destroyed 9 | 2 . 1 4 2 . . . Worker 1 | . . . 1 . . . . Tunneler 6 | 4 . . . 2 . . . Recycler 1 | 1 . . . . . . . Watcher 1 | . . . 1 . . . . Swarmer 10 | . . . 3 4 . . 3 Grunt 12 | . . 3 3 1 . . 5 Sentry 1 | . . . 1 . . . . Demolisher 1 | . . . . 1 . . . Assembled 1 | . . . . 1 . . . Best Kill Streak 6 | 3 . 3 6 4 . . 3 Combat Bots Only 5 | . . 3 5 4 . . 3 Max Kills in Single Turn 3 | 1 . 1 1 3 . . 1 Gunslinging . | . . . . . . . . Exploded 1 | . . . . . . . 1 Melee . | . . . . . . . . Uniques/NPCs Destroyed . | . . . . . . . . Combat | -11 -10 -10 -9 -9 -9 -8 -8 -------- Run | Yrd Mat Min Mat Min Exi Min Mat Hostile Shots Fired 293 | . 7 30 42 20 . . 194 Missed 93 | . 3 6 11 1 . . 72 Hits 200 | . 4 24 31 19 . . 122 Melee 4 | . . . . . . . 4 Projectile 196 | . 4 24 31 19 . . 118 AOE 10 | . . . . 10 . . . Critical Strikes 4 | . . . . . . . 4 Damage Taken 3032 | . 54 302 421 565 . . 1690 Core 811 | . 10 112 82 56 . . 551 Absorbed by Shields . | . . . . . . . . Core Remaining (%) 72 | 100 . 51 . . . 65 . Volleys Fired 80 | 11 . 15 20 15 . . 19 Largest 4 | 2 . 2 4 4 . . 4 Hottest 139 | 70 . 70 139 139 . . 128 Shots Fired 247 | 22 . 30 64 56 . . 75 Gun 148 | 22 . 30 40 30 . . 26 Cannon 95 | . . . 24 22 . . 49 Launcher 4 | . . . . 4 . . . Special . | . . . . . . . . Kinetic 182 | 11 . 15 44 37 . . 75 Thermal 61 | 11 . 15 20 15 . . . Explosive 4 | . . . . 4 . . . Electromagnetic . | . . . . . . . . Robot Hit Streak 16 | 4 . 13 16 5 . . 12 Robot Miss Streak 5 | 2 . 2 4 5 . . 3 Penetration Max . | . . . . . . . . Secondary Targets 2 | . . 2 . . . . . Max Gunslinging Chain 1 | . . 1 . . . . . Shots Hit Robots 142 | 12 . 22 36 25 . . 47 Core Hits 57 | 9 . 9 12 13 . . 14 Critical Kills . | . . . . . . . . Critical Parts Destroyed . | . . . . . . . . Critical Strikes 3 | . . 1 . 1 . . 1 Burn 2 | . . 1 . 1 . . . Smash 1 | . . . . . . . 1 Melee Attacks 6 | . . . . . . . 6 Impact 6 | . . . . . . . 6 Slashing . | . . . . . . . . Piercing . | . . . . . . . . Sneak Attacks . | . . . . . . . . Combat Hostiles . | . . . . . . . . Follow-up Attacks . | . . . . . . . . Damage Inflicted 2512 | 127 . 251 575 497 . . 1062 Guns 1200 | 127 . 251 303 232 . . 287 Cannons 1007 | . . . 272 196 . . 539 Explosions 112 | . . . . 54 . . 58 Melee 178 | . . . . . . . 178 Ramming 15 | . . . . 15 . . . Kinetic 1646 | 40 . 78 399 303 . . 826 Thermal 619 | 87 . 173 176 125 . . 58 Explosive 54 | . . . . 54 . . . Electromagnetic . | . . . . . . . . Impact 178 | . . . . . . . 178 Slashing . | . . . . . . . . Piercing . | . . . . . . . . Highest Corruption 3 | . . . . . . . 3 Average Corruption 3 | . . . . . . . 3 Corruption Purged . | . . . . . . . . Corruption Blocked . | . . . . . . . . Overload Shots . | . . . . . . . . Overflow Damage 39 | . . . 15 24 . . . Projectiles 39 | . . . 15 24 . . . Explosions . | . . . . . . . . Melee . | . . . . . . . . Knockbacks 19 | . . . 4 1 . . 14 Impact 3 | . . . . . . . 3 Kinetic 14 | . . . 3 1 . . 10 Secondary 2 | . . . 1 . . . 1 Self-Inflicted Damage 66 | . . . . 41 . . 25 Shots 2 | . . . . 1 . . 1 Rammed 1 | . . . . 1 . . . Targets Rammed 1 | . . . . 1 . . . Kicked . | . . . . . . . . Crushed . | . . . . . . . . Highest Temperature 450 | 60 . 363 289 217 . . 450 Average Temperature 121 | 25 . 195 96 97 . . 158 Received Heat Transfer 821 | . 30 171 141 38 . . 441 Effects 2 | . . 1 1 . . . . Shutdowns 1 | . . 1 . . . . . Energy Bleed 1 | . . . 1 . . . . Siege Activations . | . . . . . . . . Martial Activations . | . . . . . . . . Shielding Activations . | . . . . . . . . Robots Disrupted . | . . . . . . . . Combat Hostiles . | . . . . . . . . Robots Corrupted . | . . . . . . . . Combat Hostiles . | . . . . . . . . Parts Fried . | . . . . . . . . Impact Corruptions 1 | . . . . . . . 1 Robots Melted . | . . . . . . . . Combat Hostiles . | . . . . . . . . Parts Melted 4 | . . 1 2 1 . . . Heat Transferred 1863 | 259 . 592 518 444 . . 50 Parts Sabotaged . | . . . . . . . . Parts Stolen . | . . . . . . . . Parts Stripped . | . . . . . . . . Power Chain Reactions . | . . . . . . . . Alert | -11 -10 -10 -9 -9 -9 -8 -8 ------- Run | Yrd Mat Min Mat Min Exi Min Mat Maximum Alert Level . | . . . . . . . . Low Security (%) 100 | 100 100 100 100 100 . 100 100 Level 1 . | . . . . . . . . Level 2 . | . . . . . . . . Level 3 . | . . . . . . . . Level 4 . | . . . . . . . . Level 5 . | . . . . . . . . High Security . | . . . . . . . . Max Security . | . . . . . . . . Peak Influence 138 | 10 15 60 138 90 . . 130 Initial 28 | . . 1 . 28 . . . Average 26 | 1 . 6 49 25 . . 54 Influence Increases 850 | 25 15 85 215 187 . . 323 Destroy 0b10 Robot/C 480 | . . 60 140 120 . . 160 Destroy 0b10 Robot/NC 45 | 25 . . 10 10 . . . Destroy Leader 102 | . . 20 32 20 . . 30 Successful Hack 7 | . . 5 . . . . 2 Disable Machine 75 | . . . . . . . 75 Destroy Structure 36 | . . . 3 22 . . 11 Partial Spotted 15 | . . . . . . . 15 Lose Combat Pursuer 90 | . 15 . 30 15 . . 30 Influence Decreases 850 | 25 10 90 140 262 . . 323 Entered New Map 51 | . . 4 . 47 . . . Time Decay 638 | 25 10 86 130 171 . . 216 Lost Part 161 | . . . 10 44 . . 107 Squads Dispatched 3 | . . . . . . . 3 Investigation 1 | . . . . . . . 1 Extermination . | . . . . . . . . Reinforcement 2 | . . . . . . . 2 Assault . | . . . . . . . . Garrison . | . . . . . . . . Intercept . | . . . . . . . . Searches Triggered . | . . . . . . . . Construction Impeded . | . . . . . . . . Haulers Reinforced . | . . . . . . . . Active Scanning Responses . | . . . . . . . . Cargo Convoy Interrupts . | . . . . . . . . Stealth | -11 -10 -10 -9 -9 -9 -8 -8 --------- Run | Yrd Mat Min Mat Min Exi Min Mat Distress Signals . | . . . . . . . . Communications Jammed . | . . . . . . . . Distress Signals . | . . . . . . . . Times Spotted 44 | . 2 4 11 11 . . 16 Peak Tracking Total 5 | . 2 4 4 4 . . 5 Tactical Retreats 4 | . 1 . 1 1 . . 1 Traps | -11 -10 -10 -9 -9 -9 -8 -8 ------- Run | Yrd Mat Min Mat Min Exi Min Mat Traps Triggered . | . . . . . . . . Indirectly . | . . . . . . . . Trap Hack Attempts . | . . . . . . . . Triggered . | . . . . . . . . Disarmed . | . . . . . . . . Reprogrammed . | . . . . . . . . Reused . | . . . . . . . . Traps Extracted . | . . . . . . . . Installed . | . . . . . . . . Triggered . | . . . . . . . . Machines | -11 -10 -10 -9 -9 -9 -8 -8 ---------- Run | Yrd Mat Min Mat Min Exi Min Mat Machines Disabled 5 | . . . . . . . 5 Max in Single Turn 1 | . . . . . . . 1 Garrison Access 1 | . . . . . . . 1 Machines Repaired . | . . . . . . . . Machines Dismantled . | . . . . . . . . Machines Sabotaged . | . . . . . . . . Overloaded Fab Kills . | . . . . . . . . Hacking | -11 -10 -10 -9 -9 -9 -8 -8 --------- Run | Yrd Mat Min Mat Min Exi Min Mat Machines Accessed 6 | . . 1 . . 1 . 4 Terminals 3 | . . 1 . . . . 2 Fabricators . | . . . . . . . . Repair Stations . | . . . . . . . . Recycling Units . | . . . . . . . . Scanalyzers 1 | . . . . . . . 1 Garrison Access 1 | . . . . . . . 1 Total Hacks 16 | . . 1 . . 1 . 14 Successful 13 | . . 1 . . 1 . 11 Failed 3 | . . . . . . . 3 Catastrophic . | . . . . . . . . Database Lockouts . | . . . . . . . . Manual 2 | . . . . . 1 . 1 Terminals 4 | . . 1 . . . . 3 Fabricators . | . . . . . . . . Repair Stations . | . . . . . . . . Recycling Units . | . . . . . . . . Scanalyzers 10 | . . . . . . . 10 Garrison Access 1 | . . . . . . . 1 Terminal Hacks 3 | . . 1 . . 1 . 1 Prototype ID Bank 1 | . . . . . . . 1 Zone Layout 1 | . . 1 . . . . . Proto ID Catalog 1 | . . . . . 1 . . Fabricator Hacks . | . . . . . . . . Repair Station Hacks . | . . . . . . . . Recycling Unit Hacks . | . . . . . . . . Scanalyzer 9 | . . . . . . . 9 Retrieve Study 9 | . . . . . . . 9 Garrison Access Hacks 1 | . . . . . . . 1 Seal Access 1 | . . . . . . . 1 Unauthorized Hacks . | . . . . . . . . Terminals . | . . . . . . . . Fabricators . | . . . . . . . . Repair Stations . | . . . . . . . . Recycling Units . | . . . . . . . . Scanalyzers . | . . . . . . . . Garrison Access . | . . . . . . . . Data Cores Recovered . | . . . . . . . . Used . | . . . . . . . . Hacking Detections 3 | . . . . . . . 3 Full Trace Events 1 | . . . . . . . 1 Feedback Events . | . . . . . . . . Feedback Blocked . | . . . . . . . . Robot Schematics Acquired . | . . . . . . . . Robots Built . | . . . . . . . . Authchips . | . . . . . . . . Time . | . . . . . . . . Total Robot Build Rating . | . . . . . . . . Part Schematics Acquired . | . . . . . . . . Parts Built . | . . . . . . . . Authchips . | . . . . . . . . Time . | . . . . . . . . Total Part Build Rating . | . . . . . . . . Part Studies Acquired 9 | . . . . . . . 9 Parts Repaired . | . . . . . . . . Time . | . . . . . . . . Parts Recycled . | . . . . . . . . Recycled Matter . | . . . . . . . . Retrieved Matter . | . . . . . . . . Retrieved Components . | . . . . . . . . Parts Scanalyzed . | . . . . . . . . Part Schematics Acquired . | . . . . . . . . Parts Damaged . | . . . . . . . . Bothacking | -11 -10 -10 -9 -9 -9 -8 -8 ------------ Run | Yrd Mat Min Mat Min Exi Min Mat Used RIF Installer . | . . . . . . . . Robots Hacked . | . . . . . . . . Non-combat . | . . . . . . . . Combat . | . . . . . . . . Robot Hacks Applied . | . . . . . . . . Relay Couplers Released . | . . . . . . . . Fabnet Peak Effective % . | . . . . . . . . Robots Rewired . | . . . . . . . . Allies Hacked . | . . . . . . . . Hacks Repelled . | . . . . . . . . Allies | -11 -10 -10 -9 -9 -9 -8 -8 -------- Run | Yrd Mat Min Mat Min Exi Min Mat Total Allies . | . . . . . . . . Largest Group . | . . . . . . . . Highest-Rated Group . | . . . . . . . . Highest-Rated Ally . | . . . . . . . . Total Orders . | . . . . . . . . Ally Attacks . | . . . . . . . . Total Damage . | . . . . . . . . Kills . | . . . . . . . . Allies Corrupted . | . . . . . . . . Allies Melted . | . . . . . . . . Intel | -11 -10 -10 -9 -9 -9 -8 -8 ------- Run | Yrd Mat Min Mat Min Exi Min Mat Active Infowar (turns) 2900 | 22 137 803 385 547 288 138 580 Structural 575 | . . . . . . . 575 Seismic 2887 | 22 137 803 385 547 288 138 567 Robot Analysis Total . | . . . . . . . . Derelict Logs Recovered 4 | . . 2 . 2 . . . Drone Launches . | . . . . . . . . Drone Recoveries . | . . . . . . . . Exploration | -11 -10 -10 -9 -9 -9 -8 -8 ------------- Run | Yrd Mat Min Mat Min Exi Min Mat Turns Passed 3041 | 139 137 803 385 547 288 138 604 Spaces Moved 1682 | 64 85 473 180 260 230 107 283 Core 27 | 6 . . . 17 . . 4 Treads 1018 | 58 85 473 180 222 . . . Legs 19 | . . . . . . . 19 Wheels 618 | . . . . 21 230 107 260 Hover . | . . . . . . . . Flight . | . . . . . . . . Fastest Speed 50 | 50 160 160 160 125 125 125 125 Average Speed 156 | 149 160 160 161 186 125 125 159 Slowest Speed 800 | 160 160 160 240 600 125 125 800 Overloaded Moves . | . . . . . . . . Propulsion Burnouts . | . . . . . . . . Robots Hopped . | . . . . . . . . Potential Cave-ins . | . . . . . . . . Cave-ins Triggered . | . . . . . . . . Exploration Rate (%) 38 | 4 20 95 21 58 60 28 24 Regions Visited 7 Branch Regions 4 Pre-discovered Areas . | . . . . . . . . Known Exits Taken 3 | . . . 1 1 1 . . Unknown Exits Taken 4 | 1 1 1 . . . 1 . Scrap Searched 5 | . . 1 . 2 . 2 . Spaces Dug . | . . . . . . . . Terrain Destroyed 62 | . . . 1 51 . . 10 Melee . | . . . . . . . . Projectile 9 | . . . 1 3 . . 5 AOE 53 | . . . . 48 . . 5 Terrain Rammed . | . . . . . . . . Walls Destroyed . | . . . . . . . . Machines Disabled . | . . . . . . . . Actions | -11 -10 -10 -9 -9 -9 -8 -8 --------- Run | Yrd Mat Min Mat Min Exi Min Mat Total 1898 | 84 86 492 229 284 230 110 383 Wait 80 | . . 4 16 3 . . 57 Move 1675 | 63 84 472 179 259 229 106 283 Hop . | . . . . . . . . Pick Up 17 | 2 2 1 2 2 1 2 5 Fast Attach 17 | 7 . . 5 1 . . 4 Attach 11 | . . . 1 2 . . 8 Detach 3 | . . . 2 . . . 1 Swap 5 | 1 . . 1 1 . 2 . Drop 3 | . . . 3 . . . . Fire 80 | 11 . 15 20 15 . . 19 Melee 6 | . . . . . . . 6 Ram . | . . . . . . . . Kick . | . . . . . . . . Crush 1 | . . . . 1 . . . Escape Stasis . | . . . . . . . . Rewire . | . . . . . . . . Trap . | . . . . . . . . Miscellaneous . | . . . . . . . . Route ------- -11/Scrapyard -10/Materials -10/Mines (discovered 2 exits: [*Mat x2]) -9/Materials -9/Mines (discovered 2 exits: *Mat / *Exi) -9/Exiles -8/Mines -8/Materials History --------- Turn | Location | Event 34 | -11/Scrapyard | Discovered new exit (range 16) 140 | -11/Scrapyard | Entered Materials 164 | -10/Materials | Discovered new exit (range 13) 277 | -10/Materials | Entered Mines 312 | -10/Mines | Build established: Mutant 477 | -10/Mines | Found a Scrap Suit stashed away for nefarious purposes 481 | -10/Mines | Found Scrap Suit 673 | -10/Mines | Learned Materials terminal intel 963 | -10/Mines | Discovered new exit (range 9) 1035 | -10/Mines | Discovered new exit (range 8) 1080 | -10/Mines | Entered Materials 1080 | -9/Materials | Evolved 2 slots: Weapon x2 1081 | -9/Materials | Identified exit to Mines 1082 | -9/Materials | Loaded intel: 12 terminal locations 1465 | -9/Materials | Entered Mines 1472 | -9/Mines | Received a Rocket Launcher from a helpful Derelict 1475 | -9/Mines | Met a Derelict bent on vengeance 1479 | -9/Mines | Build established: Gunner 1694 | -9/Mines | Learned Materials trap positions 1782 | -9/Mines | Discovered new exit (range 13) 1822 | -9/Mines | Identified exit to Exiles 1833 | -9/Mines | Assembled infested the area 1909 | -9/Mines | Lost 5 parts (1p3n1w) 2012 | -9/Mines | Entered Exiles 2013 | -9/Exiles | Identified exit to Mines 2041 | -9/Exiles | Met 8R-AWN 2064 | -9/Exiles | Met EX-HEX 2097 | -9/Exiles | Met EX-BIN 2112 | -9/Exiles | Aligned with FarCom system 2114 | -9/Exiles | Given EX-Vault access code 2145 | -9/Exiles | Opened EX-Vault 2160 | -9/Exiles | Found Cloak of Protection 2192 | -9/Exiles | Warned to stay clear of 0b10 Research branches 2231 | -9/Exiles | Met EX-DEC 2300 | -9/Exiles | Left Exiles lab with Cloak of Protection 2300 | -9/Exiles | Entered Mines 2424 | -8/Mines | Discovered new exit (range 9) 2438 | -8/Mines | Entered Materials 2438 | -8/Materials | Evolved 2 slots: Utility x2 2439 | -8/Materials | Loaded intel: 12 trap records 2607 | -8/Materials | Build established: Skirmisher 3022 | -8/Materials | Core integrity fell below 50% 3034 | -8/Materials | Core integrity fell below 20% 3042 | -8/Materials | Destroyed by X-57 Shotgunner with High-powered Shotgun Last Messages --------------- 03015_ Mining Laser destroyed. 03015_ L-31 Rogue knocked back. 03018_ Minigun+ destroyed. 03018_ Structural Scanner destroyed. 03021_ L-31 Rogue suffers critical hit (Smash). 03021_ Destroyed Core Shielding. 03021_ L-31 Rogue system corrupted by crushing effect. 03021_ L-31 Rogue knocked back. 03024_ L-31 Rogue destroyed. 03024_ Acquired Flak Cannon. 03030_ Flak Cannon destroyed. 03030_ Acquired Corrupted Imp. Aluminum Leg. 03030_ Integrated Corrupted Imp. Aluminum Leg (+3). 03034_ R-06 Scavenger collects Corrupted Imp. Ion Engine. 03040_ K-01 Serf collects debris. 03040_ U-05 Engineer builds a Door. 03042_ Imp. Aluminum Leg destroyed. Map ----- +----------------------------------------------------+ | ??## ! ! ## + """ """ ""?????? | | ??############# ############# ^# """ """ """ ##?? | | ??############# ### # # """ """ """ ##?? | | ?????????????## ##????? # # ##?? | | #########????## ### ? # # ##?? | | ##########???## ### # ################?? | | ###!!!!####??## + # ###############??? | | ##! !####### ### # # ##????????? | | ## ####### ### ? # # """##????????? | | ## ####### ##???? # # """##????????? | | #########/### / """##????????? | | ######## # ##????????? | | " # ##????????? | | " ##### #### #### ##########????????? | | " ##### #### #### ##########????????? | | ##### #### #### ####??????????????? | | """## ####+####+####??????????????? | | % G"## "## ##??????????????? | | """# + ##??????????????? | | ! #### ## ##??????????????? | | "### ## k ##??????????????? | | ######"T"###### ## % "" ##??????????????? | | ######"""###### ## T" " ##??????????????? | | ##??#######?### ## "" """ ##??????????????? | | ##??#######?### %##% ##??????????????? | | ##??????????## %%! ###@########??????????????? | | ##??????????## !! x ##??????????????? | | ##??????????## gg # ??????????????? | | ???????????????## % x # ??????????????? | | ??????????????### %u #######t + ??????????????? | | ??????????????#####+;########^^^# ??????????????? | | ??????????????## % "" ##??^^^# ??????????????? | | ??????????????## """ ""S ##???? # ??????????????? | | ??????????????## """ "" ##???? ##??????????????? | | ??^???????????## """ ##???? ##??????????????? | | ??????????????## ##?????????????????????? | | ??????????????## ##?????????????????????? | | ??????????????## ##?????????????????????? | | ??????????????## ##?????????????????????? | | ??????????????#############?????????????????????? | | ??????????????#############?????????????????????? | | ????????????????????????????????????????????????? | | ??????????????????????????????Y?????????????????? | | ????????????????????????????????????????????????? | | ????????????????????????????????????????????????? | | ????????????????????????????????????????????????? | | ????????????????????????????????????????????????? | | ????????????????????????????????????????????????? | | ????????????????????????????????????????????????? | | ????????????????????????????????????????????????? | +----------------------------------------------------+ Best States ------------- Heat Dissipation 31 Energy Generation 16 Energy Capacity 275 Matter Stores 300 Matter Capacity 300 Sight Range 16 Terrain Scan Density 10 Evasion (%) 40 Recoil Reduction 2 Offensive Hacking 10 Item Schematics ----------------- None Robot Schematics ------------------ None Fabricated ------------ Nothing Repaired ---------- Nothing Studied --------- Wheel | -8/Materials | Hacked Minigun | -8/Materials | Hacked Imp. Light Cannon | -8/Materials | Hacked Assault Cannon | -8/Materials | Hacked Deuterium Engine | -8/Materials | Hacked VTOL Module | -8/Materials | Hacked Hvy. Assault Rifle | -8/Materials | Hacked Lgt. Deuterium Engine | -8/Materials | Hacked Flail | -8/Materials | Hacked Alien Tech Used ----------------- None Achievements -------------- None Challenges ------------ None Game ------ Seed StasisCoreLaser Manual? 0 Play Time 00:14:42 Cumulative 128.2 hours Start 2026.07.17 @ 00:16:26 End 2026.07.17 @ 00:30:20 Sessions 1 Manual Loads 0 Difficulty Rogue Special Mode None Game No. 272 Rogue 272 Adventurer 0 Explorer 0 Win Type - Total 0 Types 0/0/0/0/0/0/0/0/0/0 Lore% 53 Gallery% 53 Achievement% 42 Wizard Run 0 Options --------- Layout 2 ASCII 0 Keyboard 1 Movement Arrows Keybinds 0 Fullscreen 1 Font 24/Smallcaps Map View 50x44 Zoom Use 0% Tactical HUD 1 Map Filters NONE Filters NONE Steam 1 RUN: 859897e6-ca54-44c2-8192-3dd6867dd581